fUSD/lending_fUSD_20260202
["ID","MTS","AMOUNT","RATE_DAILY","PERIOD"]
[404323007,1770058254153,-921.5606106,0.00018,2]
[404323008,1770058254165,-5957.93412585,0.00018,2]
[404323009,1770058268385,500.0,0.00010515,2]
[404323010,1770058268678,500.0,0.00010515,2]
[404323011,1770058269004,500.0,0.00010515,2]
[404323014,1770058344144,-5572.01,0.0001071,2]
[404323015,1770058344266,-1824.7831,0.0001071,2]
[404323016,1770058344291,-6350.4438,0.0001071,2]
[404323017,1770058359976,1000.0,0.0001071,2]
[404323018,1770058378367,2500.0,0.0001071,2]
[404323022,1770058389741,-304.60692626,0.00010809,2]
[404323027,1770058832719,-9000.01,0.00011114,2]
[404323028,1770058832918,-10000.01,0.00011114,2]
[404323029,1770058833042,-168.13,0.00011114,2]
[404323031,1770058986518,-402.58652195,0.00011041,2]
[404323039,1770059250393,2700.0,0.000116,4]
[404323040,1770059252481,5500.0,0.000117,4]
[404323041,1770059254589,8200.0,0.000118,4]
[404323042,1770059256754,9760.16692232,0.000119,4]
[404323043,1770059256782,1239.83307768,0.000119,4]
[404323044,1770059258787,13700.0,0.000129,4]
[404323049,1770059313381,268.39101464,0.00011019,2]
[404323050,1770059319281,268.39101462,0.0001104,2]
[404323051,1770059335924,-268.39101462,0.0001106,2]
[404323054,1770059432029,-241.0,0.00011118,2]
[404323055,1770059432039,-195.0,0.00011118,2]
[404323056,1770059432049,-500.0,0.00011119,2]
[404323057,1770059432058,-195.0,0.00011119,2]
[404323058,1770059432067,-500.0,0.00011119,2]
[404323059,1770059432077,-300.0,0.00011119,2]
[404323060,1770059432086,-195.0,0.00011119,2]
[404323061,1770059432095,-250.0,0.00011119,2]
[404323062,1770059432105,-500.0,0.00011119,2]
[404323063,1770059432113,-500.0,0.00011119,2]
[404323064,1770059432122,-300.0,0.00011119,2]
[404323065,1770059432132,-300.0,0.00011119,2]
[404323066,1770059432142,-300.0,0.00011119,2]
[404323067,1770059432151,-1200.0,0.00011122,2]
[404323068,1770059432160,-1469.51,0.00011123,2]
[404323069,1770059432170,-300.0,0.00011145,2]
[404323070,1770059432179,-2142.35,0.00011146,2]
[404323071,1770059432189,-300.0,0.00011156,2]
[404323072,1770059432199,-300.0,0.00011156,2]
[404323073,1770059432209,-1200.0,0.00011157,2]
[404323074,1770059432218,-150.99,0.00011159,2]
[404323075,1770059432228,-7121.68,0.00011159,2]
[404323076,1770059432238,-3847.13,0.00011159,2]
[404323077,1770059432247,-150.0,0.00011159,2]
[404323079,1770059432257,-6454.87,0.0001116,2]
[404323081,1770059432267,-4999.99,0.0001116,2]
[404323083,1770059432275,-150.99,0.0001116,2]
[404323085,1770059432285,-299.99,0.0001116,2]
[404323087,1770059432294,-9999.99,0.0001116,2]
[404323089,1770059432303,-3185.25,0.0001116,2]
[404323090,1770059432312,-999.99,0.0001116,2]
[404323092,1770059432322,-1609.62,0.0001116,2]
[404323094,1770059432331,-9999.99,0.0001116,2]
[404323096,1770059432341,-9999.99,0.0001116,2]
[404323097,1770059432350,-2932.33,0.0001116,2]
[404323099,1770059432359,-499.99,0.0001116,2]
[404323101,1770059432369,-1182.49,0.00011196,2]
[404323103,1770059432378,-9999.99,0.00011196,2]
[404323105,1770059432388,-5230.06,0.00011197,2]
[404323106,1770059432396,-796.91678571,0.00011338,2]
[404323108,1770059432405,-6725.8362,0.00011338,2]
[404323110,1770059432415,-237.2858,0.00011338,2]
[404323112,1770059432424,-500.0,0.00011438,2]
[404323113,1770059432433,-500.0,0.00011438,2]
[404323114,1770059432442,-500.0,0.00011438,2]
[404323115,1770059432451,-500.0,0.00011438,2]
[404323117,1770059432461,-500.0,0.00011438,2]
[404323119,1770059432470,-500.0,0.00011438,2]
[404323120,1770059432479,-500.0,0.00011438,2]
[404323122,1770059432488,-500.0,0.00011438,2]
[404323124,1770059432498,-500.0,0.00011438,2]
[404323126,1770059432507,-500.0,0.00011438,2]
[404323127,1770059432516,-500.0,0.00011438,2]
[404323129,1770059432526,-500.0,0.00011438,2]
[404323131,1770059432536,-500.0,0.00011438,2]
[404323133,1770059432545,-500.0,0.00011438,2]
[404323134,1770059432555,-500.0,0.00011438,2]
[404323136,1770059432565,-500.0,0.00011438,2]
[404323138,1770059432575,-500.0,0.00011438,2]
[404323140,1770059432584,-500.0,0.00011438,2]
[404323141,1770059432594,-500.0,0.00011438,2]
[404323143,1770059432603,-500.0,0.00011438,2]
[404323145,1770059432612,-500.0,0.00011438,2]
[404323147,1770059432622,-500.0,0.00011438,2]
[404323149,1770059432631,-500.0,0.00011438,2]
[404323151,1770059432641,-151.0,0.00011438,2]
[404323152,1770059432651,-151.0,0.00011438,2]
[404323154,1770059432660,-151.0,0.00011438,2]
[404323156,1770059432669,-151.0,0.00011438,2]
[404323158,1770059432678,-249.14737168,0.00011438,2]
[404323160,1770059432687,-151.0,0.00011438,2]
[404323161,1770059432696,-151.0,0.00011438,2]
[404323163,1770059432705,-151.0,0.00011438,2]
[404323165,1770059432714,-151.0,0.00011438,2]
[404323166,1770059432723,-151.0,0.00011438,2]
[404323168,1770059432732,-151.0,0.00011438,2]
[404323170,1770059432741,-151.0,0.00011438,2]
[404323178,1770059433014,-151.0,0.00011438,2]
[404323179,1770059433025,-151.0,0.00011438,2]
[404323180,1770059433035,-151.0,0.00011438,2]
[404323181,1770059433046,-151.0,0.00011438,2]
[404323182,1770059433056,-151.0,0.00011438,2]
[404323183,1770059433067,-151.0,0.00011438,2]
[404323184,1770059433078,-151.0,0.00011438,2]
[404323185,1770059433088,-151.0,0.00011438,2]
[404323186,1770059433098,-151.0,0.00011438,2]
[404323187,1770059433108,-151.0,0.00011438,2]
[404323188,1770059433119,-151.0,0.00011438,2]
[404323189,1770059433129,-151.0,0.00011438,2]
[404323190,1770059433139,-151.0,0.00011438,2]
[404323191,1770059433148,-151.0,0.00011438,2]
[404323192,1770059433162,-151.0,0.00011438,2]
[404323193,1770059433172,-151.0,0.00011438,2]
[404323194,1770059433181,-151.0,0.00011438,2]
[404323195,1770059433191,-151.0,0.00011438,2]
[404323196,1770059433201,-151.0,0.00011438,2]
[404323197,1770059433210,-151.0,0.00011438,2]
[404323198,1770059433220,-2490.41,0.00011445,2]
[404323199,1770059433230,-166.66,0.00011461,2]
[404323200,1770059433240,-500.0,0.00011519,2]
[404323201,1770059433249,-170.84504991,0.00011555,2]
[404323202,1770059433259,-201.35253788,0.00011555,2]
[404323203,1770059433269,-333.46921362,0.00011555,2]
[404323204,1770059433279,-12486.61335912,0.00011593,2]
[404323205,1770059433288,-500.0,0.000116,2]
[404323206,1770059433297,-150.0,0.000116,2]
[404323207,1770059433307,-263.46649514,0.00011617,2]
[404323208,1770059433317,-263.46649514,0.00011617,2]
[404323209,1770059433327,-1331.0,0.0001162,2]
[404323210,1770059433336,-285.0,0.0001162,2]
[404323211,1770059433346,-192.11112163,0.00011626,2]
[404323212,1770059433355,-260.33076749,0.00011626,2]
[404323213,1770059433364,-402.41635124,0.00011626,2]
[404323214,1770059433373,-500.0,0.00011626,2]
[404323215,1770059433382,-165.90119181,0.00011626,2]
[404323216,1770059433391,-207.91892122,0.00011626,2]
[404323217,1770059433401,-500.0,0.00011626,2]
[404323218,1770059433414,-500.0,0.00011626,2]
[404323219,1770059433424,-500.0,0.00011626,2]
[404323220,1770059433434,-304.75672637,0.00011626,2]
[404323221,1770059433444,-500.0,0.00011626,2]
[404323222,1770059433453,-500.0,0.00011626,2]
[404323223,1770059433462,-500.0,0.00011626,2]
[404323224,1770059433472,-500.0,0.00011626,2]
[404323225,1770059433481,-500.0,0.00011626,2]
[404323226,1770059433490,-500.0,0.00011626,2]
[404323227,1770059433499,-500.0,0.00011626,2]
[404323228,1770059433509,-500.0,0.00011626,2]
[404323229,1770059433518,-500.0,0.00011626,2]
[404323230,1770059433527,-500.0,0.00011626,2]
[404323231,1770059433537,-500.0,0.00011626,2]
[404323232,1770059433546,-500.0,0.00011626,2]
[404323233,1770059433555,-500.0,0.00011626,2]
[404323234,1770059433564,-500.0,0.00011626,2]
[404323235,1770059433574,-500.0,0.00011626,2]
[404323236,1770059433583,-500.0,0.00011626,2]
[404323237,1770059433592,-500.0,0.00011626,2]
[404323238,1770059433601,-500.0,0.00011626,2]
[404323239,1770059433611,-500.0,0.00011626,2]
[404323240,1770059433621,-500.0,0.00011626,2]
[404323241,1770059433631,-500.0,0.00011626,2]
[404323242,1770059433641,-500.0,0.00011626,2]
[404323243,1770059433651,-151.78393116,0.00011626,2]
[404323244,1770059433664,-267.06634666,0.00011626,2]
[404323245,1770059433673,-500.0,0.00011626,2]
[404323246,1770059433683,-500.0,0.00011626,2]
[404323247,1770059433692,-500.0,0.00011626,2]
[404323248,1770059433701,-500.0,0.00011626,2]
[404323249,1770059433710,-500.0,0.00011626,2]
[404323250,1770059433719,-500.0,0.00011626,2]
[404323251,1770059433728,-500.0,0.00011626,2]
[404323252,1770059433738,-177.10198885,0.00011626,2]
[404323253,1770059433748,-500.0,0.00011626,2]
[404323254,1770059433758,-570.61221603,0.00011626,2]
[404323255,1770059433767,-570.61221603,0.00011626,2]
[404323256,1770059433777,-570.61221603,0.00011626,2]
[404323257,1770059433786,-570.61221603,0.00011626,2]
[404323258,1770059433800,-570.61221603,0.00011626,2]
[404323259,1770059433810,-570.61221603,0.00011626,2]
[404323260,1770059433819,-570.61221603,0.00011626,2]
[404323261,1770059433830,-117663.83053598,0.00011627,2]
[404323262,1770059434093,-45002.52449959,0.00011627,2]
[404323263,1770059434105,-41321.90344699,0.00011627,2]
[404323264,1770059434116,-8251.27965137,0.00011627,2]
[404323265,1770059434136,-5994.48797005,0.00011627,2]
[404323266,1770059434147,-418.75,0.00011627,2]
[404323267,1770059434163,-414.45729999,0.00011627,2]
[404323268,1770059434174,-434.37659752,0.00011627,2]
[404323269,1770059434189,-21575.52430627,0.00011627,2]
[404323270,1770059434200,-737.23270237,0.00011627,2]
[404323271,1770059434214,-694.8,0.00011627,2]
[404323272,1770059434233,-285.57354761,0.00011627,2]
[404323285,1770059438122,-333.46921362,0.00011555,2]
[404323286,1770059438134,-7445.1241143,0.00011627,2]
[404323287,1770059438183,-18003.05974786,0.00011627,2]
[404323288,1770059438198,-996.50341262,0.00011627,2]
[404323289,1770059438245,-629.68257941,0.00011627,2]
[404323290,1770059438260,-8060.40927173,0.00011627,2]
[404323291,1770059438275,-775.000005,0.00011627,2]
[404323292,1770059438291,-3221295.48031134,0.00011627,2]
[404323293,1770059438303,-500.0,0.00011655,2]
[404323294,1770059438315,-500.0,0.0001171,2]
[404323295,1770059438328,-400.0,0.00011764,2]
[404323296,1770059438340,-3851.5479,0.00011793,2]
[404323297,1770059438353,-46866.0192,0.00011793,2]
[404323298,1770059438365,-166.66,0.00011839,2]
[404323299,1770059438379,-1000.0,0.00011892,2]
[404323300,1770059438391,-1076.99786911,0.00011892,2]
[404323301,1770059438402,-2500.0,0.00011955,2]
[404323302,1770059438414,-500.0,0.00011986,2]
[404323303,1770059438427,-13007.3319112,0.00011987,2]
[404323304,1770059438440,-52351.12,0.00012055,2]
[404323307,1770059438454,-19999.99,0.00012087,2]
[404323309,1770059438465,-2872.75,0.00012087,2]
[404323311,1770059438477,-255.0,0.00012208,2]
[404323313,1770059438488,-166.66,0.00012217,2]
[404323316,1770059438499,-195.0,0.0001223,2]
[404323319,1770059438510,-250.0,0.0001223,2]
[404323321,1770059438524,-250.0,0.0001223,2]
[404323323,1770059438537,-300.0,0.0001223,2]
[404323324,1770059438547,-500.0,0.0001223,2]
[404323325,1770059438557,-195.0,0.0001223,2]
[404323326,1770059438567,-1680.0,0.00012234,2]
[404323327,1770059438580,-420.0,0.00012245,2]
[404323328,1770059438591,-12486.61335912,0.00012291,2]
[404323329,1770059438603,-333.46921356,0.00012477,2]
[404323330,1770059438614,-578.20924308,0.00012525,2]
[404323331,1770059438631,-500.0,0.00012525,2]
[404323332,1770059438644,-500.0,0.00012525,2]
[404323334,1770059438657,-500.0,0.00012525,2]
[404323336,1770059438670,-500.0,0.00012525,2]
[404323338,1770059438683,-500.0,0.00012525,2]
[404323341,1770059438694,-500.0,0.00012525,2]
[404323343,1770059438705,-500.0,0.00012525,2]
[404323345,1770059438715,-174.61919141,0.00012525,2]
[404323347,1770059438725,-500.0,0.00012525,2]
[404323349,1770059438735,-500.0,0.00012525,2]
[404323352,1770059438750,-500.0,0.00012525,2]
[404323354,1770059438761,-500.0,0.00012525,2]
[404323357,1770059438780,-209.40437684,0.00012525,2]
[404323359,1770059438794,-721.12765535,0.00012525,2]
[404323361,1770059438805,-1428.38747117,0.00012525,2]
[404323363,1770059438818,-322.6107,0.00012525,2]
[404323366,1770059438829,-209.40437684,0.00012525,2]
[404323368,1770059438843,-500.0,0.00012534,2]
[404323370,1770059438856,-217.15233878,0.0001258,2]
[404323373,1770059438870,-166.66,0.00012596,2]
[404323375,1770059438883,-2608.19,0.00012616,2]
[404323377,1770059438894,-225.18697532,0.00012635,2]
[404323380,1770059438907,-13007.33191115,0.00012641,2]
[404323382,1770059438919,-2608.19,0.0001265,2]
[404323384,1770059438930,-898.25,0.00012679,2]
[404323387,1770059438945,-2608.19,0.00012683,2]
[404323389,1770059438957,-233.51889341,0.0001269,2]
[404323391,1770059438968,-6218.3,0.00012694,2]
[404323393,1770059438980,-2608.19,0.00012716,2]
[404323395,1770059438992,-242.15909246,0.00012745,2]
[404323398,1770059439004,-2608.19,0.00012749,2]
[404323400,1770059439015,-2608.19,0.00012782,2]
[404323402,1770059439027,-251.11897888,0.000128,2]
[404323404,1770059439038,-2608.19,0.00012816,2]
[404323407,1770059439050,-2608.19,0.00012849,2]
[404323409,1770059439062,-260.4103811,0.00012855,2]
[404323411,1770059439073,-2608.19,0.00012882,2]
[404323413,1770059439084,-270.0455652,0.0001291,2]
[404323415,1770059439095,-2608.19,0.00012915,2]
[404323418,1770059439107,-2608.19,0.00012948,2]
[404323420,1770059439118,-280.03725112,0.00012965,2]
[404323422,1770059439129,-166.66,0.00012974,2]
[404323424,1770059439140,-2608.19,0.00012982,2]
[404323427,1770059439151,-12486.61335912,0.00012989,2]
[404323429,1770059439163,-2608.19,0.00013015,2]
[404323431,1770059439174,-290.39862941,0.0001302,2]
[404323433,1770059439185,-2608.19,0.00013048,2]
[404323435,1770059439196,-181.08010149,0.00013073,2]
[404323437,1770059439206,-217.15233878,0.00013073,2]
[404323439,1770059439217,-1481.23780761,0.00013073,2]
[404323442,1770059439228,-301.1433787,0.00013075,2]
[404323444,1770059439239,-2608.19,0.00013081,2]
[404323446,1770059439250,-500.0,0.00013082,2]
[404323448,1770059439262,-2608.19,0.00013114,2]
[404323450,1770059439272,-2608.19,0.00013148,2]
[404323451,1770059439282,-2608.19,0.00013181,2]
[404323452,1770059439292,-2608.19,0.00013214,2]
[404323453,1770059439302,-2608.19,0.00013247,2]
[404323454,1770059439316,-13007.33191115,0.00013295,2]
[404323455,1770059439326,-166.66,0.00013352,2]
[404323456,1770059439336,-433.0,0.00013358,2]
[404323457,1770059439347,-3240.0,0.00013425,2]
[404323458,1770059439359,-587.0,0.00013454,2]
[404323459,1770059439370,-2351.0,0.00013457,2]
[404323460,1770059439380,-7805.66,0.0001355,2]
[404323461,1770059439391,-187.78006525,0.00013621,2]
[404323462,1770059439401,-225.18697532,0.00013621,2]
[404323463,1770059439413,-1536.04360649,0.00013621,2]
[404323464,1770059439424,-500.0,0.0001363,2]
[404323465,1770059439436,-12486.61335912,0.00013686,2]
[404323466,1770059439447,-500.0,0.00013698,2]
[404323467,1770059439458,-500.0,0.00013698,2]
[404323468,1770059439468,-500.0,0.00013698,2]
[404323469,1770059439479,-500.0,0.00013698,2]
[404323470,1770059439490,-6090.79,0.00013699,2]
[404323471,1770059439501,-711.64,0.00013699,2]
[404323472,1770059439512,-200.0,0.00013699,2]
[404323473,1770059439524,-157.39,0.00013699,2]
[404323474,1770059439535,-786.97,0.00013699,2]
[404323475,1770059439546,-150.0,0.00013768,2]
[404323476,1770059439558,-500.0,0.00013863,2]
[404323477,1770059439569,-334.5472959,0.00013894,2]
[404323478,1770059439579,-151.0,0.00013905,2]
[404323479,1770059439590,-151.0,0.00013905,2]
[404323480,1770059439600,-151.0,0.00013905,2]
[404323481,1770059439611,-151.0,0.00013905,2]
[404323482,1770059439622,-151.0,0.00013907,2]
[404323483,1770059439632,-500.0,0.00013918,2]
[404323484,1770059439643,-151.0,0.00013922,2]
[404323485,1770059439653,-151.0,0.00013922,2]
[404323486,1770059439664,-151.0,0.00013923,2]
[404323487,1770059439675,-151.0,0.00013923,2]
[404323488,1770059439686,-151.0,0.00013923,2]
[404323489,1770059439696,-13007.33191115,0.00013949,2]
[404323490,1770059439706,-500.0,0.00013973,2]
[404323491,1770059439717,-6276.92,0.00014132,2]
[404323492,1770059439728,-194.72792766,0.00014169,2]
[404323493,1770059439739,-180.807096,0.00014169,2]
[404323494,1770059439750,-1592.87721993,0.00014169,2]
[404323495,1770059439762,-500.0,0.00014178,2]
[404323496,1770059439773,-6090.79,0.00014384,2]
[404323497,1770059439783,-12486.61335912,0.00014384,2]
[404323498,1770059439795,-1000.0,0.00014521,2]
[404323499,1770059439807,-13007.33191115,0.00014603,2]
[404323500,1770059439818,-358.0,0.00014608,2]
[404323501,1770059439829,-250.0,0.00014691,2]
[404323502,1770059439841,-201.93286099,0.00014717,2]
[404323503,1770059439854,-1651.81367706,0.00014717,2]
[404323505,1770059439866,-500.0,0.00014726,2]
[404323507,1770059439879,-823.0,0.00014782,2]
[404323508,1770059439891,-3292.0,0.00014803,2]
[404323509,1770059439903,-179.5507367,0.000149,2]
[404323510,1770059439916,-334.08189519,0.00015,5]
[404323511,1770059439927,-250.0,0.00015,2]
[404323512,1770059439937,-1500.0,0.00015068,2]
[404323513,1770059439948,-900.0,0.00015068,2]
[404323514,1770059439959,-6090.79,0.00015068,2]
[404323515,1770059439970,-12486.61335912,0.00015082,2]
[404323516,1770059439981,-13007.33191115,0.00015257,2]
[404323517,1770059439991,-346.92554585,0.00015263,2]
[404323518,1770059440001,-599.60298507,0.00015264,2]
[404323519,1770059440012,-747.8093786,0.00015264,2]
[404323520,1770059440023,-209.40437684,0.00015265,2]
[404323521,1770059440033,-500.0,0.00015274,2]
[404323522,1770059440044,-500.0,0.00015342,2]
[404323523,1770059440054,-500.0,0.00015416,2]
[404323524,1770059440065,-10000.0,0.00015416,2]
[404323525,1770059440075,-500.0,0.00015473,2]
[404323526,1770059440086,-500.0,0.00015473,2]
[404323527,1770059440096,-500.0,0.00015473,2]
[404323528,1770059440106,-500.0,0.00015473,2]
[404323529,1770059440116,-500.0,0.00015473,2]
[404323530,1770059440126,-500.0,0.00015473,2]
[404323531,1770059440137,-501.04497332,0.00015473,2]
[404323532,1770059440147,-503.56470175,0.00015473,2]
[404323533,1770059440157,-385.68955508,0.00015473,2]
[404323534,1770059440170,-500.0,0.00015473,2]
[404323535,1770059440181,-151.0,0.00015513,2]
[404323536,1770059440192,-520.98046437,0.00015516,2]
[404323537,1770059440203,-500.0,0.00015516,2]
[404323538,1770059440214,-500.0,0.00015516,2]
[404323539,1770059440224,-500.0,0.00015516,2]
[404323540,1770059440234,-317.29293236,0.00015516,2]
[404323541,1770059440245,-500.0,0.00015516,2]
[404323542,1770059440254,-500.0,0.00015516,2]
[404323543,1770059440264,-500.0,0.00015516,2]
[404323544,1770059440275,-500.0,0.00015516,2]
[404323545,1770059440285,-500.0,0.00015516,2]
[404323546,1770059440296,-509.63945804,0.00015516,2]
[404323547,1770059440310,-500.0,0.00015516,2]
[404323548,1770059440330,-500.0,0.00015516,2]
[404323549,1770059440340,-500.0,0.00015516,2]
[404323550,1770059440351,-500.0,0.00015516,2]
[404323551,1770059440361,-500.0,0.00015516,2]
[404323552,1770059440372,-561.99539873,0.00015516,2]
[404323553,1770059440382,-159.60859955,0.0001553,2]
[404323554,1770059440392,-2000.0,0.00015616,2]
[404323555,1770059440402,-166.66,0.00015684,2]
[404323556,1770059440414,-413.69756241,0.00015751,2]
[404323557,1770059440424,-6090.79,0.00015753,2]
[404323558,1770059440434,-12486.61335912,0.0001578,2]
[404323559,1770059440444,-217.15233878,0.00015813,2]
[404323560,1770059440454,-3003.906,0.00015838,2]
[404323561,1770059440464,-236.53,0.00015838,2]
[404323562,1770059440474,-172.3355616,0.00015852,2]
[404323563,1770059440484,-186.58743456,0.00015871,2]
[404323564,1770059440494,-186.58,0.00015884,2]
[404323566,1770059440504,-13007.33191115,0.00015911,2]
[404323568,1770059440514,-200.0,0.00016,5]
[404323570,1770059440524,-166.66,0.00016014,2]
[404323572,1770059440534,-993.57784368,0.00016021,2]
[404323573,1770059440545,-500.0,0.00016021,2]
[404323574,1770059440555,-1000.0,0.00016021,2]
[404323575,1770059440566,-501.28378078,0.00016021,2]
[404323576,1770059440576,-1000.0,0.00016021,2]
[404323577,1770059440587,-1000.0,0.00016021,2]
[404323578,1770059440597,-4433.15,0.00016116,2]
[404323584,1770059440996,-2500.0,0.00016164,2]
[404323585,1770059441017,-1152.0,0.00016242,2]
[404323586,1770059441031,-500.0,0.00016274,2]
[404323587,1770059441041,-4609.0,0.00016283,2]
[404323588,1770059441050,-429864.3138,0.00016338,2]
[404323589,1770059441060,-166.66,0.00016345,2]
[404323590,1770059441069,-225.18697532,0.00016361,2]
[404323591,1770059441079,-361.23,0.00016379,2]
[404323592,1770059441088,-159.60859955,0.00016393,2]
[404323593,1770059441097,-500.0,0.00016438,2]
[404323594,1770059441106,-500.0,0.00016438,2]
[404323595,1770059441116,-500.0,0.00016438,2]
[404323596,1770059441125,-500.0,0.00016438,2]
[404323597,1770059441134,-500.0,0.00016438,2]
[404323598,1770059441142,-500.0,0.00016438,2]
[404323599,1770059441151,-500.0,0.00016438,2]
[404323600,1770059441161,-500.0,0.00016438,2]
[404323601,1770059441170,-500.0,0.00016438,2]
[404323602,1770059441180,-500.0,0.00016438,2]
[404323603,1770059441190,-500.0,0.00016438,2]
[404323604,1770059441199,-500.0,0.00016438,2]
[404323605,1770059441208,-500.0,0.00016438,2]
[404323606,1770059441218,-500.0,0.00016438,2]
[404323607,1770059441227,-500.0,0.00016438,2]
[404323608,1770059441236,-500.0,0.00016438,2]
[404323609,1770059441245,-500.0,0.00016438,2]
[404323610,1770059441255,-500.0,0.00016438,2]
[404323611,1770059441264,-500.0,0.00016438,2]
[404323612,1770059441273,-500.0,0.00016438,2]
[404323613,1770059441282,-500.0,0.00016438,2]
[404323614,1770059441292,-500.0,0.00016438,2]
[404323615,1770059441301,-500.0,0.00016438,2]
[404323616,1770059441310,-500.0,0.00016438,2]
[404323617,1770059441320,-500.0,0.00016438,2]
[404323618,1770059441330,-500.0,0.00016438,2]
[404323619,1770059441341,-500.0,0.00016438,2]
[404323620,1770059441350,-500.0,0.00016438,2]
[404323621,1770059441360,-500.0,0.00016438,2]
[404323622,1770059441370,-500.0,0.00016438,2]
[404323623,1770059441380,-500.0,0.00016438,2]
[404323624,1770059441389,-500.0,0.00016438,2]
[404323625,1770059441398,-500.0,0.00016438,2]
[404323626,1770059441408,-500.0,0.00016438,2]
[404323627,1770059441418,-500.0,0.00016438,2]
[404323628,1770059441427,-500.0,0.00016438,2]
[404323629,1770059441436,-500.0,0.00016438,2]
[404323630,1770059441447,-614.51335755,0.00016438,2]
[404323631,1770059441456,-500.0,0.00016438,2]
[404323632,1770059441465,-500.0,0.00016438,2]
[404323633,1770059441475,-500.0,0.00016438,2]
[404323634,1770059441484,-500.0,0.00016438,2]
[404323635,1770059441493,-500.0,0.00016438,2]
[404323636,1770059441502,-500.0,0.00016438,2]
[404323637,1770059441512,-500.0,0.00016438,2]
[404323638,1770059441522,-500.0,0.00016438,2]
[404323639,1770059441533,-1639.40076329,0.00016438,2]
[404323640,1770059441543,-1639.40076329,0.00016438,2]
[404323641,1770059441552,-1639.40076329,0.00016438,2]
[404323642,1770059441562,-1639.40076329,0.00016438,2]
[404323643,1770059441571,-1639.40076329,0.00016438,2]
[404323644,1770059441582,-1639.40076329,0.00016438,2]
[404323645,1770059441592,-1639.40076329,0.00016438,2]
[404323646,1770059441603,-1639.40076329,0.00016438,2]
[404323647,1770059441613,-1639.40076329,0.00016438,2]
[404323648,1770059441624,-1639.40076329,0.00016438,2]
[404323649,1770059441633,-1639.40076329,0.00016438,2]
[404323650,1770059441643,-1639.40076329,0.00016438,2]
[404323651,1770059441653,-1639.40076329,0.00016438,2]
[404323652,1770059441662,-1639.40076329,0.00016438,2]
[404323653,1770059441671,-1639.40076329,0.00016438,2]
[404323654,1770059441680,-1639.40076329,0.00016438,2]
[404323655,1770059441690,-1639.40076329,0.00016438,2]
[404323656,1770059441699,-1639.40076329,0.00016438,2]
[404323657,1770059441708,-1639.40076329,0.00016438,2]
[404323658,1770059441718,-1639.40076329,0.00016438,2]
[404323659,1770059441727,-1639.40076329,0.00016438,2]
[404323660,1770059441735,-1639.40076329,0.00016438,2]
[404323661,1770059441744,-1639.40076329,0.00016438,2]
[404323662,1770059441754,-1639.40076329,0.00016438,2]
[404323663,1770059441763,-1639.40076329,0.00016438,2]
[404323664,1770059441772,-1639.40076329,0.00016438,2]
[404323665,1770059441781,-1639.40076329,0.00016438,2]
[404323666,1770059441790,-1639.40076329,0.00016438,2]
[404323667,1770059441803,-1639.40076329,0.00016438,2]
[404323668,1770059441812,-1639.40076329,0.00016438,2]
[404323669,1770059441821,-1580.85073603,0.00016438,2]
[404323670,1770059441830,-1580.85073603,0.00016438,2]
[404323671,1770059441839,-1580.85073603,0.00016438,2]
[404323672,1770059441849,-1580.85073603,0.00016438,2]
[404323673,1770059441858,-1580.85073603,0.00016438,2]
[404323674,1770059441868,-1580.85073603,0.00016438,2]
[404323675,1770059441879,-1580.85073603,0.00016438,2]